[Event "MČR v rapid šachu družstev 2019"]
[Site "Teplice, Czech Republic"]
[Date "2019.09.15"]
[Round "5.20"]
[White "Tichy, Lukas"]
[Black "Routner, Jakub"]
[Result "0-1"]
[TimeControl "15 min. + 5s"]
[WhiteElo "1869"]
[BlackElo "2092"]

1. e4 {[%clk 00:15:07]} {[%emt 00:00:02]} c5 {[%clk 00:15:08]} {[%emt
00:00:03]} 2. Nf3 {[%clk 00:15:11]} {[%emt 00:00:01]} e6 {[%clk 00:15:11]}
{[%emt 00:00:03]} 3. d4 {[%clk 00:15:14]} {[%emt 00:00:01]} cxd4 {[%clk
00:15:14]} {[%emt 00:00:02]} 4. Nxd4 {[%clk 00:15:17]} {[%emt 00:00:02]} a6
{[%clk 00:15:17]} 5. Nc3 {[%clk 00:15:16]} {[%emt 00:00:07]} Qc7 {[%clk
00:15:21]} {[%emt 00:00:02]} 6. g3 {[%clk 00:14:54]} {[%emt 00:00:27]} Nc6
{[%clk 00:15:08]} {[%emt 00:00:17]} 7. Nxc6 {[%clk 00:14:18]} {[%emt 00:00:41]}
bxc6 {[%clk 00:15:06]} {[%emt 00:00:07]} 8. Bg2 {[%clk 00:14:05]} {[%emt
00:00:18]} Nf6 {[%clk 00:14:57]} {[%emt 00:00:14]} 9. O-O {[%clk 00:13:53]}
{[%emt 00:00:17]} Bc5 {[%clk 00:14:55]} {[%emt 00:00:06]} 10. Bg5 {[%clk
00:13:27]} {[%emt 00:00:32]} h6 {[%clk 00:14:54]} {[%emt 00:00:06]} 11. Bxf6
{[%clk 00:13:01]} {[%emt 00:00:32]} gxf6 {[%clk 00:14:58]} {[%emt 00:00:01]} 12.
Na4 {[%clk 00:12:33]} {[%emt 00:00:33]} Be7 {[%clk 00:14:37]} {[%emt 00:00:26]}
13. c4 {[%clk 00:12:01]} {[%emt 00:00:37]} c5 {[%clk 00:14:01]} {[%emt
00:00:41]} 14. Qh5 {[%clk 00:10:32]} {[%emt 00:01:33]} Bb7 {[%clk 00:12:53]}
{[%emt 00:01:12]} 15. Nc3 {[%clk 00:10:13]} {[%emt 00:00:25]} Qe5 {[%clk
00:10:54]} {[%emt 00:02:04]} 16. Qe2 {[%clk 00:09:07]} {[%emt 00:01:11]} Qg5
{[%clk 00:07:39]} {[%emt 00:03:20]} 17. Rad1 {[%clk 00:08:36]} {[%emt
00:00:36]} Rd8 {[%clk 00:07:36]} {[%emt 00:00:09]} 18. f4 {[%clk 00:05:20]}
{[%emt 00:03:37]} h5 {[%clk 00:07:27]} {[%emt 00:00:27]} 19. f5 {[%clk
00:04:48]} Bf8 {[%clk 00:06:04]} {[%emt 00:02:05]} 20. Qd2 e5 21. fxe6 {[%clk
00:03:44]} fxe6 {[%clk 00:06:04]} {[%emt 00:00:06]} 22. Qf2 {[%clk 00:03:10]}
{[%emt 00:00:39]} Bh6 {[%clk 00:04:18]} {[%emt 00:01:51]} 23. Qxf6 {[%clk
00:02:49]} {[%emt 00:00:26]} Qxf6 {[%clk 00:04:19]} {[%emt 00:00:04]} 24. Rxf6
{[%clk 00:02:52]} {[%emt 00:00:02]} Ke7 {[%clk 00:03:57]} {[%emt 00:00:25]} 25.
Rdf1 {[%clk 00:02:40]} {[%emt 00:00:17]} Be3+ {[%clk 00:03:16]} {[%emt
00:00:47]} 26. Kh1 {[%clk 00:02:43]} {[%emt 00:00:02]} Rdf8 {[%clk 00:03:19]}
{[%emt 00:00:02]} 27. Rxf8 {[%clk 00:02:35]} {[%emt 00:00:13]} Rxf8 {[%clk
00:03:23]} 28. Rxf8 {[%clk 00:02:33]} {[%emt 00:00:07]} Kxf8 {[%clk 00:03:26]}
{[%emt 00:00:02]} 29. Bf3 {[%clk 00:02:26]} {[%emt 00:00:12]} Bd4 {[%clk
00:03:17]} {[%emt 00:00:14]} 30. Bxh5 {[%clk 00:02:08]} {[%emt 00:00:23]} Bxc3
{[%clk 00:03:10]} {[%emt 00:00:12]} 31. bxc3 Bxe4+ 32. Kg1 {[%emt 00:00:12]}
Bd3 33. Kf2 {[%emt 00:00:08]} Bxc4 {[%emt 00:00:02]} 34. a3 0-1

[Event "MČR v rapid šachu družstev 2019"]
[Site "Teplice, Czech Republic"]
[Date "2019.09.15"]
[Round "5.21"]
[White "Rubes, Jan"]
[Black "Novotny, Michal"]
[Result "0-1"]
[TimeControl "15 min. + 5s"]
[WhiteElo "2345"]
[BlackElo "2311"]

1. Nf3 {[%clk 00:15:08]} {[%emt 00:02:56]} e6 {[%clk 00:15:07]} {[%emt
00:00:04]} 2. b3 {[%clk 00:15:05]} {[%emt 00:00:08]} d5 {[%clk 00:15:10]}
{[%emt 00:00:01]} 3. Bb2 {[%clk 00:15:09]} {[%emt 00:00:01]} Nf6 {[%clk
00:15:15]} 4. e3 {[%clk 00:15:05]} {[%emt 00:00:11]} Be7 {[%clk 00:15:17]}
{[%emt 00:00:02]} 5. d4 {[%clk 00:15:08]} {[%emt 00:00:01]} O-O {[%clk
00:15:20]} {[%emt 00:00:03]} 6. Bd3 {[%clk 00:15:11]} {[%emt 00:00:01]} c5
{[%clk 00:15:22]} {[%emt 00:00:03]} 7. O-O {[%clk 00:15:01]} {[%emt 00:00:15]}
Nc6 {[%clk 00:15:24]} {[%emt 00:00:04]} 8. a3 {[%clk 00:15:04]} {[%emt
00:00:02]} Ne4 {[%clk 00:15:15]} {[%emt 00:00:14]} 9. c4 {[%clk 00:14:50]}
{[%emt 00:00:19]} cxd4 {[%clk 00:15:14]} {[%emt 00:00:06]} 10. Nxd4 {[%clk
00:14:32]} {[%emt 00:00:23]} Nc5 {[%clk 00:14:25]} {[%emt 00:00:53]} 11. Bc2
{[%clk 00:14:15]} {[%emt 00:00:22]} dxc4 {[%clk 00:14:25]} {[%emt 00:00:05]} 12.
bxc4 {[%clk 00:13:38]} {[%emt 00:00:43]} Qb6 {[%clk 00:12:58]} {[%emt
00:01:31]} 13. Bc3 {[%clk 00:13:24]} {[%emt 00:00:19]} g6 {[%clk 00:11:32]}
{[%emt 00:01:31]} 14. Nd2 {[%clk 00:13:26]} {[%emt 00:00:04]} Bd7 {[%clk
00:10:03]} {[%emt 00:01:34]} 15. Qf3 {[%clk 00:12:40]} {[%emt 00:00:51]} e5
{[%clk 00:08:19]} {[%emt 00:01:49]} 16. Rfb1 {[%clk 00:11:12]} {[%emt
00:01:32]} exd4 {[%clk 00:08:18]} {[%emt 00:00:06]} 17. exd4 {[%clk 00:11:16]}
{[%emt 00:00:02]} Nxd4 {[%clk 00:07:09]} {[%emt 00:01:13]} 18. Bxd4 {[%clk
00:11:20]} {[%emt 00:00:02]} Qc6 {[%clk 00:07:09]} {[%emt 00:00:05]} 19. Bxc5
{[%clk 00:09:24]} {[%emt 00:02:01]} Qxc5 {[%clk 00:05:24]} {[%emt 00:01:50]} 20.
Be4 {[%clk 00:09:16]} {[%emt 00:00:13]} Rad8 {[%clk 00:04:57]} {[%emt
00:00:31]} 21. Bd5 {[%clk 00:07:31]} {[%emt 00:01:51]} Be6 {[%clk 00:04:43]}
{[%emt 00:00:18]} 22. Rxb7 {[%clk 00:06:36]} {[%emt 00:01:01]} Rxd5 {[%clk
00:04:02]} {[%emt 00:00:46]} 23. Ne4 {[%clk 00:05:06]} {[%emt 00:01:34]} Qd4
{[%clk 00:03:43]} {[%emt 00:00:24]} 24. Re1 {[%clk 00:05:10]} Rf5 {[%clk
00:03:41]} {[%emt 00:00:08]} 25. Qg3 {[%clk 00:02:12]} {[%emt 00:03:04]} Bc5
{[%clk 00:02:53]} {[%emt 00:00:53]} 26. h3 {[%clk 00:01:42]} {[%emt 00:00:35]}
Bxc4 {[%clk 00:02:37]} {[%emt 00:00:21]} 27. Rc7 {[%clk 00:01:26]} {[%emt
00:00:21]} Bb6 {[%clk 00:02:20]} {[%emt 00:00:22]} 28. Rc6 {[%clk 00:01:14]}
{[%emt 00:00:18]} Bd5 {[%clk 00:00:41]} {[%emt 00:01:43]} 29. Rd6 {[%clk
00:01:17]} {[%emt 00:00:02]} Qxe4 {[%clk 00:00:22]} {[%emt 00:00:23]} 30. Rxe4
{[%clk 00:01:21]} {[%emt 00:00:02]} Bxe4 {[%clk 00:00:24]} {[%emt 00:00:03]} 31.
Rxb6 {[%clk 00:00:34]} {[%emt 00:00:53]} axb6 {[%clk 00:00:27]} {[%emt
00:00:01]} 32. Qe3 {[%clk 00:00:38]} Bd5 {[%clk 00:00:18]} {[%emt 00:00:15]} 33.
Qxb6 {[%clk 00:00:42]} {[%emt 00:00:01]} Be6 {[%clk 00:00:22]} 34. g4 {[%clk
00:00:36]} {[%emt 00:00:11]} Rd5 {[%clk 00:00:26]} {[%emt 00:00:01]} 35. Kg2
{[%clk 00:00:33]} {[%emt 00:00:09]} Ra8 {[%clk 00:00:30]} 36. Qb4 {[%clk
00:00:37]} {[%emt 00:00:01]} Rda5 {[%emt 00:01:10]} 0-1

[Event "MČR v rapid šachu družstev 2019"]
[Site "Teplice, Czech Republic"]
[Date "2019.09.15"]
[Round "5.22"]
[White "Rolinek, Dominik"]
[Black "Hadraba, Vladimir"]
[Result "1/2-1/2"]
[TimeControl "15 min. + 5s"]
[WhiteElo "1999"]
[BlackElo "2125"]

1. d4 {[%clk 00:15:09]} {[%emt 00:00:01]} Nf6 {[%clk 00:15:06]} {[%emt
00:00:04]} 2. Bf4 {[%clk 00:15:12]} {[%emt 00:00:02]} d6 {[%clk 00:15:02]}
{[%emt 00:00:09]} 3. Nc3 {[%clk 00:15:14]} {[%emt 00:00:03]} g6 {[%clk
00:15:03]} {[%emt 00:00:03]} 4. e4 {[%clk 00:15:18]} {[%emt 00:00:02]} Bg7
{[%clk 00:15:07]} {[%emt 00:00:01]} 5. Nf3 {[%clk 00:15:21]} {[%emt 00:00:02]}
O-O {[%clk 00:15:05]} {[%emt 00:00:08]} 6. Be2 {[%clk 00:15:24]} {[%emt
00:00:01]} c6 {[%clk 00:15:07]} {[%emt 00:00:03]} 7. Qd2 {[%clk 00:15:25]}
{[%emt 00:00:04]} b5 {[%clk 00:15:02]} {[%emt 00:00:10]} 8. a3 {[%clk
00:14:37]} {[%emt 00:00:52]} a6 {[%clk 00:14:50]} {[%emt 00:00:18]} 9. O-O
{[%clk 00:14:37]} {[%emt 00:00:05]} Bb7 {[%clk 00:14:51]} {[%emt 00:00:03]} 10.
Rad1 {[%clk 00:14:21]} {[%emt 00:00:21]} Qb6 {[%clk 00:14:12]} {[%emt
00:00:45]} 11. Bh6 {[%clk 00:14:05]} {[%emt 00:00:21]} c5 {[%clk 00:13:15]}
{[%emt 00:01:01]} 12. Bxg7 {[%clk 00:14:06]} {[%emt 00:00:04]} Kxg7 {[%clk
00:13:18]} {[%emt 00:00:02]} 13. e5 {[%clk 00:13:59]} {[%emt 00:00:12]} Ne4
{[%clk 00:12:32]} {[%emt 00:00:51]} 14. Nxe4 {[%clk 00:13:40]} {[%emt
00:00:24]} Bxe4 {[%clk 00:12:35]} {[%emt 00:00:03]} 15. Ng5 {[%clk 00:13:05]}
{[%emt 00:00:41]} Bb7 {[%clk 00:11:59]} {[%emt 00:00:40]} 16. exd6 {[%clk
00:11:20]} {[%emt 00:01:51]} Qxd6 {[%clk 00:10:34]} {[%emt 00:01:29]} 17. Bf3
{[%clk 00:11:01]} {[%emt 00:00:23]} Bxf3 {[%clk 00:09:50]} {[%emt 00:00:50]} 18.
Nxf3 {[%clk 00:11:03]} {[%emt 00:00:03]} cxd4 {[%clk 00:09:16]} {[%emt
00:00:39]} 19. Qxd4+ {[%clk 00:11:05]} {[%emt 00:00:02]} Qxd4 {[%clk 00:09:11]}
{[%emt 00:00:11]} 20. Rxd4 {[%clk 00:10:59]} {[%emt 00:00:10]} Nc6 {[%clk
00:08:52]} {[%emt 00:00:24]} 21. Rd7 {[%clk 00:11:02]} {[%emt 00:00:02]} Rfd8
{[%clk 00:08:41]} {[%emt 00:00:16]} 22. Rfd1 {[%clk 00:11:04]} {[%emt
00:00:03]} Kf6 {[%clk 00:08:22]} {[%emt 00:00:24]} 23. Kf1 {[%clk 00:10:36]}
{[%emt 00:00:31]} h6 {[%clk 00:07:29]} {[%emt 00:01:01]} 24. Ke2 {[%clk
00:10:29]} {[%emt 00:00:11]} Ke6 {[%clk 00:07:23]} {[%emt 00:00:12]} 25. Rxd8
{[%clk 00:10:15]} {[%emt 00:00:20]} Rxd8 {[%clk 00:07:27]} 26. Rxd8 {[%clk
00:10:17]} {[%emt 00:00:01]} Nxd8 {[%clk 00:07:31]} {[%emt 00:00:02]} 27. Kd3
{[%clk 00:10:13]} {[%emt 00:00:09]} Kd5 {[%clk 00:07:34]} {[%emt 00:00:02]} 28.
b3 {[%clk 00:10:05]} {[%emt 00:00:13]} Nc6 {[%clk 00:07:08]} {[%emt 00:00:31]}
29. c4+ {[%clk 00:09:56]} {[%emt 00:00:14]} bxc4+ {[%clk 00:07:11]} {[%emt
00:00:02]} 30. bxc4+ {[%clk 00:10:00]} {[%emt 00:00:01]} Kc5 {[%clk 00:07:11]}
{[%emt 00:00:05]} 31. Kc3 {[%clk 00:09:56]} {[%emt 00:00:09]} e5 {[%clk
00:06:18]} {[%emt 00:00:58]} 32. Nd2 {[%clk 00:09:48]} {[%emt 00:00:12]} f5
{[%clk 00:06:11]} {[%emt 00:00:13]} 33. Nb3+ {[%clk 00:09:50]} {[%emt
00:00:02]} Kd6 {[%clk 00:06:14]} {[%emt 00:00:03]} 34. Kd3 {[%clk 00:09:39]}
{[%emt 00:00:15]} e4+ {[%clk 00:05:11]} {[%emt 00:01:09]} 35. Ke3 {[%clk
00:09:38]} {[%emt 00:00:06]} Ke5 {[%clk 00:05:15]} {[%emt 00:00:01]} 36. f3
{[%clk 00:08:17]} {[%emt 00:01:26]} exf3 {[%clk 00:04:09]} {[%emt 00:01:11]} 37.
gxf3 {[%clk 00:08:17]} {[%emt 00:00:04]} g5 {[%clk 00:04:06]} {[%emt 00:00:09]}
38. h3 {[%clk 00:07:05]} {[%emt 00:01:17]} h5 {[%clk 00:04:04]} {[%emt
00:00:07]} 39. Nc5 {[%clk 00:03:28]} {[%emt 00:03:42]} a5 {[%clk 00:02:49]}
{[%emt 00:01:19]} 40. Nb3 {[%clk 00:02:23]} {[%emt 00:01:10]} Kd6 {[%clk
00:01:49]} {[%emt 00:01:06]} 41. Ke4 {[%emt 00:00:15]} Ke5+ 42. Ke3 {[%emt
00:00:11]} f4+ {[%emt 00:00:06]} 1/2-1/2

[Event "MČR v rapid šachu družstev 2019"]
[Site "Teplice, Czech Republic"]
[Date "2019.09.15"]
[Round "5.23"]
[White "Kral, David"]
[Black "Hosnedl, Matyas"]
[Result "1-0"]
[TimeControl "15 min. + 5s"]
[WhiteElo "2029"]
[BlackElo "1858"]

1. e4 {[%clk 00:15:08]} {[%emt 00:00:02]} e6 {[%clk 00:15:09]} {[%emt
00:00:02]} 2. d4 {[%clk 00:15:12]} {[%emt 00:00:01]} d5 {[%clk 00:15:13]} 3.
Nc3 {[%clk 00:15:16]} Nf6 {[%clk 00:15:16]} {[%emt 00:00:02]} 4. Bg5 {[%clk
00:15:04]} {[%emt 00:00:18]} Be7 {[%clk 00:15:19]} {[%emt 00:00:02]} 5. e5
{[%clk 00:15:04]} {[%emt 00:00:05]} Nfd7 {[%clk 00:15:23]} {[%emt 00:00:01]} 6.
Bxe7 {[%clk 00:14:42]} {[%emt 00:00:26]} Qxe7 {[%clk 00:15:26]} {[%emt
00:00:02]} 7. Qg4 {[%clk 00:14:43]} {[%emt 00:00:04]} f6 {[%clk 00:15:18]}
{[%emt 00:00:13]} 8. f4 {[%clk 00:14:12]} {[%emt 00:00:36]} c5 {[%clk
00:15:16]} {[%emt 00:00:08]} 9. Nb5 {[%clk 00:12:28]} {[%emt 00:01:49]} O-O
{[%clk 00:15:07]} {[%emt 00:00:13]} 10. O-O-O {[%clk 00:09:55]} {[%emt
00:02:39]} Nc6 {[%clk 00:14:50]} {[%emt 00:00:22]} 11. c3 {[%clk 00:09:36]}
{[%emt 00:00:24]} a6 {[%clk 00:13:44]} {[%emt 00:01:11]} 12. Nd6 {[%clk
00:09:19]} {[%emt 00:00:21]} cxd4 {[%clk 00:12:31]} {[%emt 00:01:19]} 13. cxd4
{[%clk 00:09:21]} {[%emt 00:00:03]} b5 {[%clk 00:12:11]} {[%emt 00:00:25]} 14.
Nf3 {[%clk 00:09:05]} {[%emt 00:00:21]} Nb6 {[%clk 00:12:05]} {[%emt 00:00:12]}
15. h4 {[%clk 00:07:23]} {[%emt 00:01:46]} Nc4 {[%clk 00:11:45]} {[%emt
00:00:25]} 16. Bxc4 {[%clk 00:07:20]} {[%emt 00:00:08]} bxc4 {[%clk 00:11:45]}
{[%emt 00:00:04]} 17. Rhe1 {[%clk 00:05:26]} {[%emt 00:02:00]} Nb4 {[%clk
00:10:21]} {[%emt 00:01:29]} 18. Kb1 {[%clk 00:05:23]} {[%emt 00:00:08]} Qd7
{[%clk 00:08:27]} {[%emt 00:01:58]} 19. a3 {[%clk 00:04:19]} {[%emt 00:01:10]}
Nd3 {[%clk 00:07:28]} {[%emt 00:01:04]} 20. Re2 {[%clk 00:04:17]} {[%emt
00:00:06]} Rb8 {[%clk 00:07:12]} {[%emt 00:00:23]} 21. Ne1 {[%clk 00:02:49]}
{[%emt 00:01:32]} Qa4 {[%clk 00:06:21]} {[%emt 00:00:56]} 22. Rc2 {[%clk
00:01:23]} {[%emt 00:01:31]} fxe5 {[%clk 00:03:24]} {[%emt 00:03:02]} 23. Nxc8
{[%clk 00:01:01]} {[%emt 00:00:27]} Rbxc8 {[%clk 00:01:06]} {[%emt 00:02:23]}
24. Qxe6+ {[%clk 00:01:03]} {[%emt 00:00:03]} Kh8 {[%clk 00:01:11]} 25. Nxd3
{[%clk 00:01:01]} {[%emt 00:00:07]} cxd3 {[%clk 00:01:02]} {[%emt 00:00:13]} 26.
Rxc8 {[%clk 00:00:45]} {[%emt 00:00:22]} Qxd1+ {[%clk 00:01:05]} {[%emt
00:00:02]} 27. Ka2 {[%clk 00:00:40]} {[%emt 00:00:09]} 1-0

[Event "MČR v rapid šachu družstev 2019"]
[Site "Teplice, Czech Republic"]
[Date "2019.09.15"]
[Round "5.25"]
[White "Soural, Jan"]
[Black "Bujak, Michal"]
[Result "0-1"]
[TimeControl "15 min. + 5s"]
[WhiteElo "2121"]
[BlackElo "2170"]

1. d4 {[%clk 00:15:09]} {[%emt 00:45:41]} Nf6 {[%clk 00:15:08]} {[%emt
00:00:03]} 2. c4 {[%clk 00:15:12]} {[%emt 00:00:02]} e6 {[%clk 00:15:07]}
{[%emt 00:00:06]} 3. g3 {[%clk 00:15:15]} {[%emt 00:00:03]} Bb4+ {[%clk
00:15:08]} {[%emt 00:00:03]} 4. Bd2 {[%clk 00:15:18]} {[%emt 00:00:02]} Be7
{[%clk 00:15:10]} {[%emt 00:00:03]} 5. Bg2 {[%clk 00:15:13]} {[%emt 00:00:09]}
d5 {[%clk 00:15:06]} {[%emt 00:00:09]} 6. Nf3 {[%clk 00:15:11]} {[%emt
00:00:09]} Ne4 {[%clk 00:14:39]} {[%emt 00:00:31]} 7. O-O {[%clk 00:14:44]}
{[%emt 00:00:32]} c6 {[%clk 00:14:16]} {[%emt 00:00:28]} 8. Qc2 {[%clk
00:13:51]} {[%emt 00:00:58]} O-O {[%clk 00:14:08]} {[%emt 00:00:14]} 9. Bc1
{[%clk 00:12:34]} {[%emt 00:01:21]} Nd7 {[%clk 00:13:55]} {[%emt 00:00:18]} 10.
Rd1 {[%clk 00:12:31]} {[%emt 00:00:08]} f5 {[%clk 00:13:07]} {[%emt 00:00:52]}
11. b3 {[%clk 00:12:24]} {[%emt 00:00:12]} Qe8 {[%clk 00:12:20]} {[%emt
00:00:53]} 12. Ba3 {[%clk 00:12:19]} {[%emt 00:00:09]} Bxa3 13. Nxa3 {[%clk
00:12:23]} Qh5 {[%clk 00:12:16]} {[%emt 00:00:05]} 14. b4 {[%clk 00:12:12]}
{[%emt 00:00:16]} f4 {[%clk 00:09:46]} {[%emt 00:02:36]} 15. b5 {[%clk
00:11:07]} {[%emt 00:01:10]} Ndf6 {[%clk 00:02:05]} {[%emt 00:07:46]} 16. bxc6
{[%clk 00:07:48]} {[%emt 00:03:24]} fxg3 {[%clk 00:01:04]} {[%emt 00:01:05]} 17.
hxg3 {[%clk 00:07:45]} {[%emt 00:00:08]} Ng4 {[%clk 00:01:06]} {[%emt
00:00:04]} 18. cxd5 {[%clk 00:06:34]} {[%emt 00:01:16]} exd5 {[%clk 00:01:03]}
{[%emt 00:00:08]} 19. cxb7 {[%clk 00:06:30]} {[%emt 00:00:09]} Bxb7 {[%clk
00:01:00]} {[%emt 00:00:08]} 20. Rab1 {[%clk 00:06:05]} {[%emt 00:00:30]} Ba6
{[%clk 00:00:41]} {[%emt 00:00:24]} 21. Nb5 {[%clk 00:05:27]} {[%emt 00:00:44]}
Rxf3 {[%clk 00:00:33]} {[%emt 00:00:12]} 22. exf3 {[%clk 00:04:40]} {[%emt
00:00:52]} Qh2+ {[%clk 00:00:36]} {[%emt 00:00:01]} 23. Kf1 {[%clk 00:04:45]}
Nxg3+ {[%clk 00:00:30]} {[%emt 00:00:13]} 24. fxg3 {[%clk 00:04:08]} {[%emt
00:00:41]} Ne3+ {[%clk 00:00:33]} {[%emt 00:00:01]} 25. Kf2 {[%clk 00:04:12]}
{[%emt 00:00:02]} Qxg2+ {[%clk 00:00:36]} {[%emt 00:00:03]} 26. Kg1 {[%emt
00:02:01]} 0-1